[Event "GM ZIA Smirity-A 2025"]
[Site "Dhaka"]
[Date "2025.02.20"]
[Round "6.8"]
[White "Kazi Zarin, Tasnim"]
[Black "Noshin, Anjum"]
[Result "1-0"]
[Annotator "RC"]
[ECO "C47"]
[WhiteElo "1897"]
[BlackElo "2053"]
[PlyCount "63"]
[EventDate "2025.02.17"]
[EventType "swiss"]
[EventCountry "BAN"]
[SourceTitle "playchess.com"]
[Source "ChessBase"]
[SourceQuality "1"]
[TimeControl "5400+30"]

1. e4 {[%emt 0:17:17]} e5 {[%emt 0:00:22]} 2. Nf3 {[%emt 0:01:01]} Nc6 {[%emt 0:00:06]} 3. Nc3 {[%emt 0:00:09]} Nf6 {[%emt 0:00:26]} 4. d4 {[%emt 0:00:11]} exd4 {[%emt 0:02:00]} 5. Nxd4 {[%emt 0:00:24]} Bb4 {[%emt 0:01:20]} 6. Nxc6 {[%emt 0:00:06]} bxc6 {[%emt 0:00:04]} 7. Bd3 {[%emt 0:00:04]} d5 {[%emt 0:00:24]} 8. exd5 {[%emt 0:00:10]} O-O {[%emt 0:00:17]} 9. O-O {[%emt 0:00:06]} cxd5 {[%emt 0:00:15]} 10. Bg5 {[%emt 0:00:11]} c6 {[%emt 0:04:12]} 11. Qf3 {[%emt 0:00:22]} Bd6 {[%emt 0:07:05]} 12. h3 {[%emt 0:00:08]} Rb8 {[%emt 0:00:18]} 13. b3 {[%emt 0:00:09]} h6 {[%emt 0:09:26]} 14. Bf4 {[%emt 0:01:41]} a5 {[%emt 0:02:26]} 15. Rfd1 {[%emt 0:02:13]} Re8 {[%emt 0:05:16]} 16. Ne2 {[%emt 0:02:51]} c5 {[%emt 0:05:43]} 17. Ng3 {[%emt 0:04:21]} Bxf4 {[%emt 0:03:47]} 18. Qxf4 {[%emt 0:00:20]} Rb4 {[%emt 0:00:26]} 19. Qf3 {[%emt 0:01:43]} Qc7 {[%emt 0:03:48]} 20. Nh5 {[%emt 0:11:05]} Nxh5 {[%emt 0:14:59]} 21. Qxh5 {[%emt 0:00:19]} c4 {[%emt 0:04:54]} 22. Bf1 {[%emt 0:18:11]} Re5 {[%emt 0:03:29]} 23. Qf3 {[%emt 0:01:28]} cxb3 {[%emt 0:05:31]} 24. axb3 {[%emt 0:06:44]} Rf5 {[%emt 0:06:07]} 25. Qg3 {[%emt 0:03:43]} Qb6 {[%emt 0:01:37]} 26. Qe3 {[%emt 0:03:15]} Qd8 {[%emt 0:04:28]} 27. Bd3 {[%emt 0:04:22]} Rf6 {[%emt 0:07:53]} 28. Rxa5 {[%emt 0:01:52]} Bb7 {[%emt 0:02:49]} 29. Qc5 {[%emt 0:05:04]} Rbf4 {[%emt 0:01:05]} 30. Ra7 {[%emt 0:01:43]} Qb8 {[%emt 0:00:53]} 31. Re1 {[%emt 0:02:02]} g6 {[%emt 0:00:24]} 32. Rxb7 {[%emt 0:02:03]} 1-0

[Event "GM ZIA Smirity-A 2025"]
[Site "Dhaka"]
[Date "2025.02.20"]
[Round "6.9"]
[White "Md Nasir Uddin"]
[Black "Hamid, Rani"]
[Result "1-0"]
[Annotator "RC"]
[ECO "E32"]
[WhiteElo "2010"]
[BlackElo "1913"]
[PlyCount "97"]
[EventDate "2025.02.17"]
[EventType "swiss"]
[EventCountry "BAN"]
[SourceTitle "playchess.com"]
[Source "ChessBase"]
[SourceQuality "1"]
[TimeControl "5400+30"]

1. d4 {[%emt 0:00:30]} Nf6 {[%emt 0:05:05]} 2. c4 {[%emt 0:00:21]} e6 {[%emt 0:00:06]} 3. Nc3 {[%emt 0:00:04]} Bb4 {[%emt 0:00:07]} 4. Nf3 {[%emt 0:00:40]} O-O {[%emt 0:00:17]} 5. Qc2 {[%emt 0:00:30]} b6 {[%emt 0:01:05]} 6. e4 {[%emt 0:00:14]} Bb7 {[%emt 0:00:33]} 7. Bd3 {[%emt 0:00:12]} d5 {[%emt 0:01:51]} 8. cxd5 {[%emt 0:00:52]} exd5 {[%emt 0:00:06]} 9. e5 {[%emt 0:00:13]} Ne4 {[%emt 0:00:31]} 10. O-O {[%emt 0:00:09]} Bxc3 {[%emt 0:00:18]} 11. bxc3 {[%emt 0:00:03]} Nd7 {[%emt 0:02:12]} 12. c4 {[%emt 0:01:24]} f5 {[%emt 0:03:16]} 13. cxd5 {[%emt 0:04:11]} Bxd5 {[%emt 0:00:08]} 14. Ne1 {[%emt 0:00:41]} c5 {[%emt 0:02:28]} 15. f3 {[%emt 0:00:09]} Ng5 {[%emt 0:00:07]} 16. Bxf5 {[%emt 0:02:12]} cxd4 {[%emt 0:00:19]} 17. Bxg5 {[%emt 0:00:03]} Qxg5 {[%emt 0:01:23]} 18. Bxd7 {[%emt 0:00:04]} Qxe5 {[%emt 0:00:19]} 19. Rd1 {[%emt 0:01:54]} Rad8 {[%emt 0:01:42]} 20. Bb5 {[%emt 0:03:15]} Bxf3 {[%emt 0:03:18]} 21. Rxf3 {[%emt 0:00:03]} Qxb5 {[%emt 0:00:26]} 22. Rxf8+ {[%emt 0:01:31]} Rxf8 {[%emt 0:00:27]} 23. Nf3 {[%emt 0:00:04]} Qc5 {[%emt 0:03:04]} 24. Qxc5 {[%emt 0:08:00]} bxc5 {[%emt 0:00:03]} 25. Rc1 {[%emt 0:00:01]} Rf5 {[%emt 0:00:19]} 26. Kf2 {[%emt 0:00:15]} Kf7 {[%emt 0:01:27]} 27. Ke2 {[%emt 0:00:06]} Ke6 {[%emt 0:00:25]} 28. Rb1 {[%emt 0:00:06]} g5 {[%emt 0:02:43]} 29. h3 {[%emt 0:00:17]} h5 {[%emt 0:00:56]} 30. Rb7 {[%emt 0:04:40]} g4 {[%emt 0:00:14]} 31. hxg4 {[%emt 0:00:37]} hxg4 {[%emt 1:10:45]} 32. Nd2 {[%emt 1:13:09]} Re5+ {[%emt 0:00:00]} 33. Kd1 {[%emt 0:00:00]} a5 {[%emt 0:00:00]} 34. Rg7 {[%emt 0:00:00]} Kf5 {[%emt 0:00:00]} 35. Nc4 {[%emt 0:00:00]} Re6 {[%emt 0:00:00]} 36. Rc7 {[%emt 0:00:00]} Kf4 {[%emt 0:00:00]} 37. Rxc5 {[%emt 0:00:00]} Kg3 {[%emt 0:00:00]} 38. Rg5 {[%emt 0:00:00]} Rf6 {[%emt 0:00:00]} 39. Ne5 {[%emt 0:00:00]} Rf1+ {[%emt 0:00:00]} 40. Kc2 {[%emt 0:00:00]} Rf2+ {[%emt 0:00:00]} 41. Kb3 {[%emt 0:00:00]} Rf4 {[%emt 0:00:00]} 42. Kc4 {[%emt 0:00:00]} Rf8 {[%emt 0:00:00]} 43. Rxg4+ {[%emt 0:00:00]} Kf2 {[%emt 0:00:00]} 44. Kxd4 {[%emt 0:00:00]} Rb8 {[%emt 0:00:00]} 45. a3 {[%emt 0:00:00]} Rd8+ {[%emt 0:00:00]} 46. Kc5 {[%emt 0:00:00]} Rc8+ {[%emt 0:00:00]} 47. Kb5 {[%emt 0:00:00]} Rd8 {[%emt 0:00:00]} 48. Nc4 {[%emt 0:00:00]} Rd5+ {[%emt 0:00:00]} 49. Ka4 {[%emt 0:00:00]} 1-0

[Event "GM ZIA Smirity-A 2025"]
[Site "Dhaka"]
[Date "2025.02.20"]
[Round "6.10"]
[White "Alam, Monjur"]
[Black "Chowdhury, Sohel"]
[Result "1-0"]
[Annotator "RC"]
[ECO "D63"]
[WhiteElo "1906"]
[BlackElo "2018"]
[PlyCount "87"]
[EventDate "2025.02.17"]
[EventType "swiss"]
[EventCountry "BAN"]
[SourceTitle "playchess.com"]
[Source "ChessBase"]
[SourceQuality "1"]
[TimeControl "5400+30"]

1. d4 {[%emt 0:12:57]} d5 {[%emt 0:02:04]} 2. c4 {[%emt 0:00:12]} c6 {[%emt 0:00:07]} 3. Nc3 {[%emt 0:00:09]} Nf6 {[%emt 0:00:02]} 4. Bg5 {[%emt 0:00:12]} e6 {[%emt 0:00:18]} 5. e3 {[%emt 0:00:03]} Be7 {[%emt 0:02:32]} 6. Nf3 {[%emt 0:00:16]} Nbd7 {[%emt 0:00:04]} 7. Rc1 {[%emt 0:00:17]} h6 {[%emt 0:00:24]} 8. Bh4 {[%emt 0:00:11]} O-O {[%emt 0:07:01]} 9. a3 {[%emt 0:00:42]} b6 {[%emt 0:00:18]} 10. cxd5 {[%emt 0:00:17]} exd5 {[%emt 0:00:22]} 11. b4 {[%emt 0:00:25]} Bb7 {[%emt 0:01:30]} 12. Qb3 {[%emt 0:00:13]} Rc8 {[%emt 0:05:27]} 13. Be2 {[%emt 0:01:59]} Ne4 {[%emt 0:08:59]} 14. Nxe4 {[%emt 0:09:07]} dxe4 {[%emt 0:00:35]} 15. Bxe7 {[%emt 0:00:02]} Qxe7 {[%emt 0:00:02]} 16. Nd2 {[%emt 0:00:01]} Nf6 {[%emt 0:02:52]} 17. O-O {[%emt 0:01:54]} Rfd8 {[%emt 0:02:51]} 18. Qb2 {[%emt 0:03:03]} c5 {[%emt 0:07:14]} 19. bxc5 {[%emt 0:02:09]} bxc5 {[%emt 0:01:01]} 20. Nb3 {[%emt 0:00:16]} cxd4 {[%emt 0:03:07]} 21. Nxd4 {[%emt 0:00:31]} Bd5 {[%emt 0:04:44]} 22. Rc3 {[%emt 0:04:24]} Rxc3 {[%emt 0:16:46]} 23. Qxc3 {[%emt 0:00:11]} Be6 {[%emt 0:01:00]} 24. Qa5 {[%emt 0:05:31]} Rd5 {[%emt 0:04:01]} 25. Qa4 {[%emt 0:03:37]} Rg5 {[%emt 0:01:11]} 26. Nxe6 {[%emt 0:07:01]} Qxe6 {[%emt 0:03:09]} 27. Qxa7 {[%emt 0:02:10]} Qh3 {[%emt 0:00:13]} 28. g3 {[%emt 0:00:10]} h5 {[%emt 0:02:10]} 29. Rb1 {[%emt 0:08:18]} h4 {[%emt 0:00:45]} 30. Bf1 {[%emt 0:03:00]} Qe6 {[%emt 0:02:26]} 31. Qb8+ {[%emt 0:03:33]} Kh7 {[%emt 0:00:07]} 32. Qf4 {[%emt 0:00:09]} Rh5 {[%emt 0:05:18]} 33. Be2 {[%emt 0:05:27]} Qa2 {[%emt 0:06:49]} 34. Re1 {[%emt 0:00:55]} Qd2 {[%emt 0:01:00]} 35. Kf1 {[%emt 0:01:19]} Rc5 {[%emt 0:06:57]} 36. Qxh4+ {[%emt 0:01:55]} Kg8 {[%emt 0:00:01]} 37. Qf4 {[%emt 0:03:42]} Rc1 {[%emt 0:00:41]} 38. Rxc1 {[%emt 0:00:43]} Qxc1+ {[%emt 0:00:03]} 39. Kg2 {[%emt 0:00:03]} Qxa3 {[%emt 0:00:03]} 40. g4 {[%emt 0:00:42]} Qe7 {[%emt 0:01:55]} 41. Bc4 {[%emt 0:02:31]} g6 {[%emt 0:02:21]} 42. Qh6 {[%emt 0:03:41]} Ne8 {[%emt 0:02:17]} 43. Qxg6+ {[%emt 0:01:03]} Ng7 {[%emt 0:00:02]} 44. Bd5 {[%emt 0:00:46]} 1-0

[Event "GM ZIA Smirity-A 2025"]
[Site "Dhaka"]
[Date "2025.02.20"]
[Round "6.11"]
[White "Safayat, Kibria Azaan"]
[Black "Swarnavo Choudhury"]
[Result "0-1"]
[Annotator "RC"]
[ECO "B48"]
[WhiteElo "1850"]
[BlackElo "2120"]
[PlyCount "92"]
[EventDate "2025.02.17"]
[EventType "swiss"]
[EventCountry "BAN"]
[SourceTitle "playchess.com"]
[Source "ChessBase"]
[SourceQuality "1"]
[TimeControl "5400+30"]

1. e4 {[%emt 1:31:00]} c5 {[%emt 0:10:00]} 2. Nf3 {[%emt 0:00:00]} e6 {[%emt 0:00:12]} 3. d4 {[%emt 0:00:00]} cxd4 {[%emt 0:00:07]} 4. Nxd4 {[%emt 0:00:00]} Nc6 {[%emt 0:00:09]} 5. Nc3 {[%emt 0:00:00]} Qc7 {[%emt 0:00:05]} 6. Be3 {[%emt 0:00:00]} a6 {[%emt 0:00:07]} 7. Qd2 {[%emt 0:00:00]} Nf6 {[%emt 0:00:44]} 8. f3 {[%emt 0:00:00]} Bb4 {[%emt 0:04:52]} 9. Bd3 {[%emt 0:00:00]} Nxd4 10. Bxd4 {[%emt 0:00:00]} e5 {[%emt 0:14:00]} 11. Bf2 {[%emt 0:00:00]} d5 {[%emt 0:01:32]} 12. a3 {[%emt 0:00:00]} Bxc3 {[%emt 0:00:27]} 13. Qxc3 {[%emt 0:00:00]} Qxc3+ {[%emt 0:00:05]} 14. bxc3 {[%emt 0:00:00]} dxe4 {[%emt 0:00:31]} 15. fxe4 {[%emt 0:00:00]} Be6 {[%emt 0:00:33]} 16. Bc5 {[%emt 0:00:00]} Nd7 {[%emt 0:09:41]} 17. Bb4 {[%emt 0:00:00]} f6 {[%emt 0:06:33]} 18. a4 {[%emt 0:00:00]} b6 {[%emt 0:01:13]} 19. a5 {[%emt 0:00:00]} b5 {[%emt 0:00:31]} 20. Ke2 {[%emt 0:00:00]} Kf7 {[%emt 0:00:23]} 21. Ke3 {[%emt 0:00:00]} Rhc8 {[%emt 0:06:15]} 22. Rhf1 {[%emt 0:00:00]} Nc5 {[%emt 0:01:36]} 23. h3 {[%emt 0:00:00]} Na4 {[%emt 0:05:21]} 24. Ra3 {[%emt 0:00:00]} Rc6 {[%emt 0:00:30]} 25. Kd2 {[%emt 0:00:00]} Rd8 {[%emt 0:04:35]} 26. Ke3 {[%emt 0:00:00]} Bc4 {[%emt 0:04:37]} 27. Rf2 {[%emt 0:00:00]} Nb2 {[%emt 0:02:50]} 28. Rd2 {[%emt 0:00:00]} Rc7 {[%emt 0:00:43]} 29. Ra1 {[%emt 0:00:00]} Rcd7 {[%emt 0:01:55]} 30. Rb1 {[%emt 0:00:00]} Nxd3 {[%emt 0:03:34]} 31. Rbd1 {[%emt 0:00:00]} Nc5 {[%emt 0:04:40]} 32. Bxc5 {[%emt 0:00:00]} Rxd2 {[%emt 0:00:03]} 33. Rxd2 {[%emt 0:00:00]} Rxd2 {[%emt 0:00:05]} 34. Kxd2 {[%emt 0:00:00]} Bf1 {[%emt 0:00:03]} 35. g3 {[%emt 0:00:00]} Bxh3 {[%emt 0:00:19]} 36. Bf2 {[%emt 0:00:00]} Bg2 {[%emt 0:00:35]} 37. Ke3 {[%emt 0:00:00]} Kg6 {[%emt 0:00:32]} 38. Kd3 {[%emt 0:00:00]} Kg5 {[%emt 0:00:13]} 39. c4 {[%emt 0:00:00]} Bf1+ {[%emt 0:00:19]} 40. Kc3 {[%emt 0:19:30]} bxc4 {[%emt 0:06:16]} 41. Kb4 {[%emt 0:00:00]} Kg4 {[%emt 0:14:14]} 42. c3 {[%emt 0:00:00]} Kf3 {[%emt 0:00:00]} 43. Be1 {[%emt 0:00:00]} Ke2 {[%emt 0:01:00]} 44. Kc5 Kxe1 {[%emt 0:00:00]} 45. Kb6 {[%emt 0:00:00]} Kd2 {[%emt 0:00:00]} 46. Kxa6 {[%emt 0:00:00]} Bg2 {[%emt 0:00:00]} 0-1

[Event "GM ZIA Smirity-A 2025"]
[Site "Dhaka"]
[Date "2025.02.20"]
[Round "6.12"]
[White "Sajidul, Haque"]
[Black "Masum, Hossain"]
[Result "1-0"]
[Annotator "RC"]
[ECO "A13"]
[WhiteElo "2107"]
[BlackElo "2011"]
[PlyCount "79"]
[EventDate "2025.02.17"]
[EventType "swiss"]
[EventCountry "BAN"]
[SourceTitle "playchess.com"]
[Source "ChessBase"]
[SourceQuality "1"]
[TimeControl "5400+30"]

1. c4 {[%emt 0:08:13]} e6 {[%emt 0:22:44]} 2. Nf3 {[%emt 0:00:13]} d5 {[%emt 0:00:01]} 3. g3 {[%emt 0:00:12]} Nf6 {[%emt 0:00:05]} 4. Bg2 {[%emt 0:00:04]} c6 {[%emt 0:00:28]} 5. b3 {[%emt 0:00:06]} a5 {[%emt 0:00:07]} 6. O-O {[%emt 0:00:46]} Nbd7 {[%emt 0:00:07]} 7. Nc3 {[%emt 0:00:56]} Bd6 {[%emt 0:00:02]} 8. Bb2 {[%emt 0:00:46]} e5 {[%emt 0:00:17]} 9. cxd5 {[%emt 0:00:32]} cxd5 {[%emt 0:00:02]} 10. Nb5 {[%emt 0:00:28]} Qb6 {[%emt 0:01:56]} 11. a4 {[%emt 0:01:13]} d4 {[%emt 0:08:16]} 12. d3 {[%emt 0:10:51]} Bc5 {[%emt 0:07:04]} 13. Nd2 {[%emt 0:00:36]} O-O {[%emt 0:00:20]} 14. Nc4 {[%emt 0:00:09]} Qd8 {[%emt 0:00:13]} 15. e3 {[%emt 0:08:08]} Re8 {[%emt 0:04:13]} 16. Kh1 {[%emt 0:03:48]} Nb6 {[%emt 0:01:32]} 17. Nxe5 {[%emt 0:01:33]} dxe3 {[%emt 0:02:27]} 18. d4 {[%emt 0:00:34]} e2 {[%emt 0:00:02]} 19. Qxe2 {[%emt 0:00:37]} Bb4 {[%emt 0:00:01]} 20. Rac1 {[%emt 0:01:12]} Nbd5 {[%emt 0:50:33]} 21. Qc4 {[%emt 0:01:23]} Be6 {[%emt 0:00:00]} 22. Nc7 {[%emt 0:00:28]} Nxc7 {[%emt 0:00:00]} 23. Qxc7 {[%emt 0:00:32]} Bxb3 {[%emt 0:00:00]} 24. Qxb7 {[%emt 0:00:49]} Rb8 {[%emt 0:00:00]} 25. Qf3 {[%emt 0:04:33]} Bxa4 {[%emt 0:00:00]} 26. Ra1 {[%emt 0:20:44]} Bb5 {[%emt 0:00:00]} 27. Rfd1 {[%emt 0:01:10]} Qd6 {[%emt 0:00:00]} 28. Bc1 {[%emt 0:03:22]} Qa6 {[%emt 0:02:53]} 29. Qb3 {[%emt 0:03:23]} Qe6 {[%emt 0:00:39]} 30. Qf3 {[%emt 0:01:51]} Ba6 {[%emt 0:00:18]} 31. Bf4 {[%emt 0:01:19]} Bb7 {[%emt 0:00:51]} 32. d5 {[%emt 0:01:25]} Qf5 {[%emt 0:00:29]} 33. g4 {[%emt 0:01:16]} Qc2 {[%emt 0:00:23]} 34. Rac1 {[%emt 0:01:21]} Qa2 {[%emt 0:00:51]} 35. g5 {[%emt 0:01:26]} Nxd5 36. Rxd5 {[%emt 0:00:43]} Bd6 {[%emt 0:00:47]} 37. Qd3 {[%emt 0:03:25]} Qxf2 {[%emt 0:00:37]} 38. Rf1 {[%emt 0:01:55]} Qa2 {[%emt 0:01:12]} 39. Nc4 {[%emt 0:17:58]} Bxf4 {[%emt 0:00:29]} 40. Ne5 1-0

[Event "GM ZIA Smirity-A 2025"]
[Site "Dhaka"]
[Date "2025.02.20"]
[Round "6.13"]
[White "Neelava, Choudhury"]
[Black "Sagor"]
[Result "0-1"]
[Annotator "RC"]
[ECO "B43"]
[WhiteElo "1784"]
[BlackElo "2001"]
[PlyCount "52"]
[EventDate "2025.02.17"]
[EventType "swiss"]
[EventCountry "BAN"]
[SourceTitle "playchess.com"]
[Source "ChessBase"]
[SourceQuality "1"]
[TimeControl "5400+30"]

1. e4 {[%emt 0:18:41]} c5 {[%emt 0:00:12]} 2. Nf3 {[%emt 0:00:12]} e6 {[%emt 0:00:11]} 3. d4 {[%emt 0:00:05]} cxd4 {[%emt 0:00:04]} 4. Nxd4 {[%emt 0:00:04]} a6 {[%emt 0:00:09]} 5. Nc3 {[%emt 0:00:03]} Qc7 {[%emt 0:00:13]} 6. Be3 {[%emt 0:00:12]} Nf6 {[%emt 0:00:14]} 7. Qf3 {[%emt 0:00:19]} d6 {[%emt 0:03:17]} 8. O-O-O {[%emt 0:10:46]} Nbd7 {[%emt 0:00:50]} 9. Qg3 {[%emt 0:11:24]} b5 {[%emt 0:01:08]} 10. Bxb5 {[%emt 0:04:57]} axb5 {[%emt 0:03:04]} 11. Ndxb5 {[%emt 0:00:06]} Qb8 {[%emt 0:01:08]} 12. Ba7 {[%emt 0:03:17]} Rxa7 {[%emt 0:16:54]} 13. Nxa7 {[%emt 0:02:20]} Qxa7 {[%emt 0:00:29]} 14. f4 {[%emt 0:01:00]} Bb7 {[%emt 0:04:03]} 15. e5 {[%emt 0:04:54]} dxe5 {[%emt 0:01:57]} 16. fxe5 {[%emt 0:00:14]} Nd5 {[%emt 0:02:47]} 17. Nxd5 {[%emt 0:06:58]} Bxd5 {[%emt 0:01:24]} 18. a3 {[%emt 0:00:51]} Qc5 {[%emt 0:04:50]} 19. Rhf1 {[%emt 0:03:20]} g6 {[%emt 0:01:17]} 20. Qf4 {[%emt 0:00:13]} Qe7 {[%emt 0:13:55]} 21. Qa4 {[%emt 0:02:29]} Bh6+ {[%emt 0:03:23]} 22. Kb1 {[%emt 0:00:56]} O-O {[%emt 0:02:09]} 23. c4 {[%emt 0:01:00]} Nb6 {[%emt 0:00:50]} 24. Qa6 {[%emt 0:01:51]} Nxc4 {[%emt 0:38:02]} 25. Rfe1 {[%emt 0:01:10]} Qc5 {[%emt 0:00:00]} 26. Qa4 {[%emt 0:01:44]} Nd2+ {[%emt 0:00:00]} 0-1

[Event "GM ZIA Smirity-A 2025"]
[Site "Dhaka"]
[Date "2025.02.20"]
[Round "6.14"]
[White "Aiyan, Rahman"]
[Black "Rayan Rashid Mugdho"]
[Result "0-1"]
[Annotator "NA COMBH"]
[ECO "B55"]
[WhiteElo "1827"]
[BlackElo "1861"]
[PlyCount "122"]
[EventDate "2025.02.17"]
[EventType "swiss"]
[EventCountry "BAN"]
[SourceTitle "playchess.com"]
[Source "ChessBase"]
[SourceQuality "1"]
[TimeControl "5400+30"]

1. e4 {[%emt 0:00:23]} c5 {[%emt 0:00:57]} 2. Nf3 {[%emt 0:00:16]} d6 {[%emt 0:00:36]} 3. d4 {[%emt 0:00:22]} cxd4 {[%emt 0:00:11]} 4. Nxd4 {[%emt 0:00:03]} Nf6 {[%emt 0:00:10]} 5. f3 {[%emt 0:04:37]} Qb6 {[%emt 0:00:51]} 6. c4 {[%emt 0:00:17]} Nc6 {[%emt 0:00:43]} 7. Nb3 {[%emt 0:00:05]} g6 {[%emt 0:00:37]} 8. Nc3 {[%emt 0:00:34]} Bg7 {[%emt 0:00:20]} 9. Qe2 {[%emt 0:03:03]} O-O {[%emt 0:02:49]} 10. Be3 {[%emt 0:00:31]} Qd8 {[%emt 0:02:22]} 11. Qd2 {[%emt 0:01:54]} Ne5 {[%emt 0:06:15]} 12. Nd4 {[%emt 0:00:26]} Bd7 {[%emt 0:00:51]} 13. Be2 {[%emt 0:02:08]} Rc8 {[%emt 0:05:46]} 14. b3 {[%emt 0:03:09]} a6 {[%emt 0:06:41]} 15. O-O {[%emt 0:00:17]} Kh8 {[%emt 0:02:25]} 16. Rac1 {[%emt 0:01:37]} Qa5 {[%emt 0:07:48]} 17. Rfd1 {[%emt 0:04:15]} Nc6 {[%emt 0:02:54]} 18. a4 {[%emt 0:06:19]} Rfd8 {[%emt 0:07:22]} 19. Bf1 {[%emt 0:10:53]} e6 {[%emt 0:07:35]} 20. Qf2 {[%emt 0:07:00]} Be8 {[%emt 0:06:18]} 21. Nde2 {[%emt 0:12:54]} Nd7 {[%emt 0:08:28]} 22. Na2 {[%emt 0:19:50]} Qc7 {[%emt 0:04:38]} 23. b4 {[%emt 0:04:31]} Qb8 {[%emt 0:04:00]} 24. Nd4 {[%emt 0:02:07]} Nde5 {[%emt 0:02:45]} 25. h3 {[%emt 0:01:38]} Nxd4 {[%emt 0:00:45]} 26. Bxd4 {[%emt 0:00:01]} Bxa4 {[%emt 0:00:38]} 27. Rd2 {[%emt 0:02:36]} Bb3 {[%emt 0:01:25]} 28. f4 {[%emt 0:03:25]} Nxc4 {[%emt 0:02:10]} 29. Bxc4 {[%emt 0:01:10]} Bxc4 {[%emt 0:00:11]} 30. Bxg7+ {[%emt 0:00:08]} Kxg7 {[%emt 0:00:06]} 31. Nc3 {[%emt 0:01:26]} b5 {[%emt 0:01:53]} 32. f5 {[%emt 0:00:16]} e5 {[%emt 0:02:43]} 33. f6+ {[%emt 0:01:04]} Kh8 {[%emt 0:00:07]} 34. Rcd1 {[%emt 0:02:54]} Bb3 {[%emt 0:00:55]} 35. Rc1 {[%emt 0:00:24]} Rc6 {[%emt 0:00:31]} 36. Qh4 {[%emt 0:00:39]} Qb6+ {[%emt 0:00:33]} 37. Kh2 {[%emt 0:00:29]} Qe3 {[%emt 0:00:51]} 38. Nd1 {[%emt 0:01:58]} Qxd2 {[%emt 0:00:39]} 39. Rxc6 {[%emt 0:00:01]} Bxd1 {[%emt 0:00:19]} 40. Rc7 {[%emt 0:00:20]} Qf4+ {[%emt 0:00:45]} 41. Qxf4 {[%emt 0:00:01]} exf4 {[%emt 0:00:01]} 42. Rxf7 {[%emt 0:00:02]} Bb3 {[%emt 0:13:36]} 43. Ra7 {[%emt 0:00:01]} Be6 {[%emt 0:00:00]} 44. Rxa6 {[%emt 0:00:05]} Kg8 {[%emt 0:00:00]} 45. Rb6 {[%emt 0:00:46]} Kf7 {[%emt 0:00:00]} 46. Rxb5 {[%emt 0:00:14]} Kxf6 {[%emt 0:00:00]} 47. Rb7 {[%emt 0:00:04]} Ke5 {[%emt 0:00:00]} 48. Rxh7 {[%emt 0:00:07]} Kxe4 {[%emt 0:00:00]} 49. Re7 {[%emt 0:00:12]} Kd5 {[%emt 0:00:00]} 50. Rg7 {[%emt 0:00:17]} Bf5 {[%emt 0:00:00]} 51. g4 {[%emt 0:00:28]} fxg3+ {[%emt 0:00:00]} 52. Kxg3 {[%emt 0:00:01]} Rb8 {[%emt 0:00:00]} 53. b5 {[%emt 0:00:39]} Rxb5 {[%emt 0:00:00]} 54. h4 {[%emt 0:00:02]} Rb3+ {[%emt 0:00:00]} 55. Kf4 {[%emt 0:00:01]} Rb4+ {[%emt 0:00:00]} 56. Kg3 {[%emt 0:00:32]} Rg4+ {[%emt 0:00:00]} 57. Kh3 {[%emt 0:00:02]} g5 {[%emt 0:00:00]} 58. Rf7 {[%emt 0:00:11]} Rxh4+ {[%emt 0:00:00]} 59. Kg3 {[%emt 0:00:05]} Rg4+ {[%emt 0:00:00]} 60. Kf3 {[%emt 0:00:01]} Rf4+ {[%emt 0:00:00]} 61. Kg3 {[%emt 0:00:04]} Ke5 {[%emt 0:09:30]} 0-1

[Event "GM ZIA Smirity-A 2025"]
[Site "Dhaka"]
[Date "2025.02.20"]
[Round "7.1"]
[White "Md Minhaz Uddin"]
[Black "Sakline Mostafa, Sajid"]
[Result "1/2-1/2"]
[Annotator "RC"]
[ECO "B30"]
[WhiteElo "2230"]
[BlackElo "2199"]
[PlyCount "63"]
[EventDate "2025.02.17"]
[EventType "swiss"]
[EventCountry "BAN"]
[SourceTitle "playchess.com"]
[Source "ChessBase"]
[SourceQuality "1"]
[TimeControl "5400+30"]

1. e4 {[%emt 0:00:03]} c5 {[%emt 0:00:01]} 2. Nf3 {[%emt 0:00:06]} Nc6 {[%emt 0:00:05]} 3. Nc3 {[%emt 0:00:06]} e5 {[%emt 0:00:33]} 4. Bc4 {[%emt 0:00:21]} Be7 {[%emt 0:00:28]} 5. d3 {[%emt 0:00:02]} Nf6 {[%emt 0:00:14]} 6. O-O {[%emt 0:00:07]} O-O {[%emt 0:00:05]} 7. Bg5 {[%emt 0:03:55]} d6 {[%emt 0:00:15]} 8. Bxf6 {[%emt 0:00:10]} Bxf6 {[%emt 0:00:02]} 9. Nd5 {[%emt 0:01:56]} g6 {[%emt 0:00:13]} 10. h3 {[%emt 0:05:00]} Bg7 {[%emt 0:00:11]} 11. a3 {[%emt 0:00:40]} Kh8 {[%emt 0:04:38]} 12. b4 {[%emt 0:04:51]} f5 {[%emt 0:01:02]} 13. b5 {[%emt 0:04:47]} Ne7 {[%emt 0:05:34]} 14. Nxe7 {[%emt 0:00:52]} Qxe7 {[%emt 0:00:03]} 15. Qe2 {[%emt 0:02:39]} Bd7 {[%emt 0:02:17]} 16. a4 {[%emt 0:06:05]} f4 {[%emt 0:06:38]} 17. Kh2 {[%emt 0:03:29]} h5 {[%emt 0:04:26]} 18. Bd5 {[%emt 0:04:11]} Rab8 {[%emt 0:01:17]} 19. c4 {[%emt 0:03:02]} Bh6 {[%emt 0:04:32]} 20. Rh1 {[%emt 0:03:02]} g5 {[%emt 0:07:40]} 21. Kg1 {[%emt 0:04:45]} Kg7 {[%emt 0:01:27]} 22. Nh2 {[%emt 0:04:33]} Qe8 {[%emt 0:27:34]} 23. a5 {[%emt 0:06:57]} g4 {[%emt 0:14:21]} 24. hxg4 {[%emt 0:02:00]} hxg4 {[%emt 0:00:29]} 25. Nxg4 {[%emt 0:00:24]} Bg5 {[%emt 0:00:13]} 26. Rh3 {[%emt 0:09:22]} Qg6 {[%emt 0:06:11]} 27. f3 {[%emt 0:06:42]} Rh8 {[%emt 0:00:44]} 28. a6 {[%emt 0:04:56]} b6 {[%emt 0:05:47]} 29. Bc6 {[%emt 0:00:34]} Be6 {[%emt 0:00:11]} 30. Bd5 {[%emt 0:00:07]} Bd7 {[%emt 0:00:18]} 31. Bc6 {[%emt 0:00:09]} Be6 {[%emt 0:00:38]} 32. Bd5 {[%emt 0:00:12]} 1/2-1/2